bitfinex-derivatives/quotes_SOLF0:USTF0_20251018
["timestamp","ask_amount","ask_price","bid_price","bid_amount"]
[1760749453909,2.75,183.26,183.23,1.88524744]
[1760749455507,2.75,183.27,183.23,1.88524744]
[1760749455708,2.75,183.26,183.23,1.88524744]
[1760749456112,4.9093,183.27,183.23,1.88524744]
[1760749456411,2.75,183.25,183.23,1.88524744]
[1760749456613,2.75,183.26,183.23,1.88524744]
[1760749456910,2.75,183.25,183.23,1.88524744]
[1760749459814,7.6594,183.26,183.23,1.88524744]
[1760749460114,2.75,183.24,183.23,1.88524744]
[1760749461912,4.9089,183.28,183.23,1.88524744]
[1760749462218,2.75,183.26,183.25,1.88524744]
[1760749462415,6.83455945,183.26,183.25,1.88524744]
[1760749464620,4.08455945,183.26,183.25,1.88524744]
[1760749464814,2.75,183.29,183.25,1.88524744]
[1760749465020,2.75,183.29,183.28,1.88524744]
[1760749465321,6.83471575,183.29,183.28,1.88524744]
[1760749465714,4.08471575,183.29,183.28,1.88524744]
[1760749467017,2.75,183.33,183.28,1.88524744]
[1760749467217,4.06307031,183.32,183.31,1.88524744]
[1760749467615,2.75,183.36,183.31,1.88524744]
[1760749467919,2.75,183.36,183.35,1.88524744]
[1760749468721,163.52978548,183.41,183.35,1.88524744]
[1760749468916,155.68846262,183.41,183.37,1.88524744]
[1760749469319,2.75,183.4,183.37,1.88524744]
[1760749470218,2.75,183.4,183.39,1.88524744]
[1760749470821,4.9044,183.45,183.28,9.88087097]
[1760749471119,6.9765703,183.39,183.2,55.22087097]
[1760749471318,2.75,183.36,183.28,1.88524744]
[1760749473019,2.75,183.32,183.28,1.88524744]
[1760749473420,2.75,183.31,183.28,1.88524744]
[1760749473616,2.75,183.37,183.3,1.88524744]
[1760749473822,2.75,183.39,183.33,1.88524744]
[1760749475122,7.6561,183.39,183.33,1.88524744]
[1760749476526,7.6561,183.39,183.28,4.9086]
[1760749476718,2.75,183.39,183.35,1.88524744]
[1760749477322,2.75,183.43,183.37,1.88524744]
[1760749480216,2.75,183.43,183.39,1.88524744]
[1760749480830,11.65665989,183.47,183.41,1.88524744]
[1760749481027,4.00295989,183.46,183.41,1.88524744]
[1760749481227,2.8,183.46,183.41,1.88524744]
[1760749481628,2.8,183.46,183.38,4.9058]
[1760749481930,2.8,183.46,183.4,1.88524744]
[1760749483731,2.8,183.49,183.42,1.88524744]
[1760749483927,2.8,183.48,183.41,1.88524744]
[1760749485231,2.8,183.48,183.43,1.88524744]
[1760749485533,2.8,183.49,183.42,1.88524744]
[1760749488427,4.9039,183.47,183.36,4.9064]
[1760749488628,1.88524744,183.46,183.25,9.88087097]
[1760749488824,2.8,183.43,183.35,1.88524744]
[1760749489025,2.8,183.43,183.37,1.88524744]
[1760749491137,1.88524744,183.42,183.36,4.9066]
[1760749491439,2.8,183.43,183.36,4.9066]
[1760749491638,4.68524744,183.43,183.36,4.9066]
[1760749493341,2.8,183.43,183.36,4.9066]
[1760749500339,2.94227619,183.42,183.33,4.9074]
[1760749500645,2.8,183.38,183.33,4.9074]
[1760749500847,7.7063,183.38,183.31,4.9079]
[1760749501548,2.8,183.35,183.2,2.94227619]
[1760749501746,2.8,183.32,183.19,2.94227619]
[1760749502247,2.94227619,183.3,183.18,45.36]
[1760749502437,5.74227619,183.3,183.18,45.36]
[1760749502640,5.74227619,183.3,183.18,48.30227619]
[1760749502641,2.8,183.3,183.18,48.30227619]
[1760749502837,2.8,183.33,183.21,2.94227619]
[1760749503149,2.8,183.33,183.25,2.94227619]
[1760749503346,2.8,183.33,183.26,4.9091]
[1760749503548,2.8,183.33,183.22,2.94227619]
[1760749503745,2.72,183.35,183.22,2.94227619]
[1760749504548,2.72,183.31,183.23,4.9098]
[1760749506145,3.99766789,183.35,183.2,2.94227619]
[1760749506146,2.94227619,183.33,183.2,2.94227619]
[1760749506451,2.72,183.32,183.2,2.94227619]
[1760749507549,2.72,183.31,183.2,2.94227619]
[1760749507752,2.72,183.31,183.23,2.94227619]
[1760749508352,6.72032536,183.35,183.23,2.94227619]
[1760749508552,2.72,183.35,183.23,2.94227619]
[1760749508950,2.72,183.35,183.26,2.94227619]
[1760749510446,2.72,183.35,183.25,4.9093]
[1760749510651,6.94306055,183.38,183.25,4.9093]
[1760749510852,2.94227619,183.38,183.25,4.9093]
[1760749511052,2.86,183.37,183.25,4.9093]
[1760749511250,2.86,183.36,183.25,4.9093]
[1760749511453,2.86,183.33,183.25,4.9093]
[1760749511958,2.86,183.31,183.24,2.94227619]
[1760749513046,4.9079,183.32,183.17,83.1513984]
[1760749513047,2.86,183.34,183.21,2.94227619]
[1760749513450,2.86,183.32,183.21,2.94227619]
[1760749514049,2.86,183.32,183.22,4.9101]
[1760749514050,7.7677,183.32,183.22,4.9101]
[1760749514253,7.7677,183.32,183.24,2.94227619]
[1760749514660,7.7677,183.32,183.24,7.85187619]
[1760749516263,2.86,183.32,183.25,4.9093]
[1760749516953,2.86,183.32,183.24,2.94227619]
[1760749517360,2.94227619,183.37,183.21,2.94227619]
[1760749517559,2.86,183.36,183.21,2.94227619]
[1760749517955,2.94227619,183.35,183.24,2.94227619]
[1760749518165,2.86,183.34,183.24,2.94227619]
[1760749518365,2.86,183.27,183.21,2.94227619]
[1760749519561,7.7683,183.3,183.21,2.94227619]
[1760749520059,2.86,183.3,183.23,4.9099]
[1760749520460,2.86,183.3,183.25,4.9093]
[1760749520864,7.7672,183.34,183.25,4.9093]
[1760749521663,7.7672,183.34,183.26,4.9091]
[1760749521965,7.7672,183.34,183.24,2.94227619]
[1760749522366,7.7672,183.34,183.27,4.9089]
[1760749523867,2.86,183.34,183.27,4.9089]
[1760749524363,7.7674,183.34,183.25,4.9095]
[1760749524671,2.86,183.35,183.22,2.94227619]
[1760749525870,5.80227619,183.35,183.22,2.94227619]
[1760749526071,2.86,183.31,183.23,4.9101]
[1760749528069,4.9077,183.32,183.19,2.94227619]
[1760749528070,2.86,183.29,183.19,2.94227619]
[1760749529067,4.9088,183.28,183.21,4.9105]
[1760749534976,2.86,183.29,183.22,4.9102]
[1760749535772,2.86,183.29,183.23,4.91]
[1760749535975,2.86,183.33,183.22,2.94227619]
[1760749536778,6.87558792,183.37,183.23,2.94227619]
[1760749537074,2.86,183.34,183.23,2.94227619]
[1760749537273,2.86,183.34,183.22,45.38]
[1760749537475,2.86,183.29,183.22,45.38]
[1760749539078,4.9089,183.28,183.22,45.38]
[1760749540982,2.94227619,183.35,183.22,45.38]
[1760749540983,2.8,183.26,183.22,45.38]
[1760749541485,2.8,183.29,183.2,2.94227619]
[1760749541680,2.8,183.27,183.16,45.36]
[1760749541881,6.82367072,183.27,183.17,2.94227619]
[1760749542087,4.9102,183.23,183.17,2.94227619]
[1760749542384,7.7102,183.23,183.17,2.94227619]
[1760749543784,7.7102,183.23,183.17,7.85387619]
[1760749544885,8.94096236,183.25,183.18,4.9113]
[1760749545187,4.9097,183.25,183.18,4.9113]
[1760749545376,7.7091,183.27,183.19,4.911]
[1760749545784,7.7091,183.27,183.2,2.94227619]
[1760749545984,2.8,183.27,183.2,2.94227619]
[1760749546788,7.7091,183.27,183.2,7.85297619]
[1760749549978,5.05968293,183.3,183.17,2.94227619]
[1760749550188,2.8,183.28,183.17,2.94227619]
[1760749550395,2.8,183.26,183.17,2.94227619]
[1760749551191,4.91,183.24,183.17,7.85387619]
[1760749551585,7.71,183.24,183.17,7.85387619]
[1760749554780,2.8,183.2,183.16,45.36]
[1760749555186,4.9107,183.21,183.16,45.36]
[1760749555385,2.8,183.2,183.18,1.88704602]
[1760749557394,2.8,183.21,183.18,1.88704602]
[1760749557594,2.8,183.2,183.18,1.88704602]
[1760749558898,4.68704602,183.22,183.13,1.88704602]
[1760749559092,4.68704602,183.22,183.12,1.88704602]
[1760749559093,6.80484491,183.21,183.12,1.88704602]
[1760749559492,2.8,183.16,183.12,1.88704602]
[1760749560295,2.8,183.15,183.1,1.88704602]
[1760749560500,2.8,183.18,183.1,1.88704602]
[1760749560689,6.80403904,183.18,183.1,1.88704602]
[1760749560892,4.9124,183.15,183.1,1.88704602]
[1760749561292,2.8,183.14,183.1,1.88704602]
[1760749563399,2.87,183.15,183.07,1.88704602]
[1760749563596,1.88704602,183.14,182.97,9.88087097]
[1760749563789,1.88704602,183.09,183.01,1.88704602]
[1760749563989,7.7843,183.08,182.99,1.88704602]
[1760749564190,7.7843,183.08,183.01,1.88704602]
[1760749565192,7.7843,183.08,182.99,6.80334602]
[1760749565393,2.87,183.06,182.98,45.38]
[1760749565598,2.87,183.04,182.97,1.88704602]
[1760749566998,7.7854,183.04,182.95,1.88704602]
[1760749570294,2.87,183.04,182.97,1.88704602]
[1760749570603,2.87,183.04,182.98,1.88704602]
[1760749570803,2.87,183.04,182.96,1.88704602]
[1760749571709,2.87,183.04,182.98,1.88704602]
[1760749573010,4.9152,183.05,183.0,1.88704602]
[1760749573306,2.68,183.04,183.0,1.88704602]
[1760749573811,2.68,183.03,183.0,1.88704602]
[1760749574000,2.68,183.03,182.94,45.4]
[1760749574001,1.88704602,183.13,183.02,1.88704602]
[1760749574203,1.88704602,183.11,183.02,1.88704602]
[1760749574407,2.68,183.1,183.02,1.88704602]
[1760749574900,2.68,183.05,183.02,1.88704602]
[1760749575105,1.88704602,183.13,183.04,1.88704602]
[1760749575309,2.68,183.12,183.04,1.88704602]
[1760749575904,1.88704602,183.11,183.02,1.88704602]
[1760749576112,2.68,183.1,183.02,1.88704602]
[1760749577809,2.68,183.11,183.04,1.88704602]
[1760749577998,2.68,183.13,183.06,1.88704602]
[1760749578902,4.9136,183.1,183.06,1.88704602]
[1760749579107,2.68,183.1,183.06,1.88704602]
[1760749579312,2.68,183.16,183.08,1.88704602]
[1760749581011,4.9129,183.13,183.08,1.88704602]
[1760749581213,2.68,183.12,183.08,1.88704602]
[1760749581712,7.5929,183.13,183.1,1.88704602]
[1760749582012,7.5929,183.13,183.05,4.9147]
[1760749582013,2.68,183.12,183.08,1.88704602]
[1760749582913,2.68,183.12,183.04,1.88704602]
[1760749583211,1.88704602,183.11,183.02,1.88704602]
[1760749583407,4.56704602,183.11,183.02,1.88704602]
[1760749583612,4.9143,183.08,183.02,1.88704602]
[1760749584711,2.68,183.06,183.0,1.88704602]
[1760749585509,4.9151,183.05,183.0,1.88704602]
[1760749585706,2.68,183.06,182.94,21.04]
[1760749585707,2.68,183.06,182.98,1.88704602]
[1760749585912,1.88704602,183.05,182.96,1.88704602]
[1760749586215,4.9159,183.02,182.96,1.88704602]
[1760749587415,1.88704602,183.03,182.94,22.92704602]
[1760749587618,2.68,183.02,182.94,22.92704602]
[1760749587815,4.9167,182.99,182.94,22.92704602]
[1760749588016,2.68,182.98,182.94,21.04]
[1760749588216,2.68,182.98,182.91,139.67041808]
[1760749588415,2.68,182.98,182.91,141.5574641]
[1760749588913,2.68,182.98,182.89,1.88704602]
[1760749589117,1.88704602,182.97,182.88,4.9194]
[1760749589821,6.80424602,182.97,182.87,47.34704602]
[1760749590217,4.9172,182.97,182.87,47.34704602]
[1760749591621,1.88704602,182.96,182.87,47.34704602]
[1760749591816,2.68,182.95,182.87,47.34704602]
[1760749592820,7.5978,182.95,182.87,47.34704602]
[1760749593119,4.56704602,182.99,182.91,1.88704602]
[1760749593318,2.68,182.99,182.87,45.46]
[1760749593521,2.68,182.99,182.91,1.88704602]
[1760749594220,2.68,183.02,182.93,1.88704602]
[1760749594423,4.56704602,183.02,182.87,45.46]
[1760749594615,2.68,183.0,182.91,1.88704602]
[1760749594810,4.56704602,183.0,182.91,1.88704602]
[1760749595216,9.48354602,183.0,182.91,1.88704602]
[1760749595617,7.5965,183.0,182.91,1.88704602]
[1760749597217,2.68,183.0,182.93,6.80504602]
[1760749597417,4.9158,183.02,182.95,1.88704602]
[1760749599418,7.5963,183.01,182.93,1.88704602]
[1760749599623,4.56704602,183.01,182.91,6.80564602]
[1760749601127,4.9165,183.0,182.91,6.80564602]
[1760749602830,4.9165,183.0,182.93,1.88704602]
[1760749604634,4.9165,183.0,182.91,6.80564602]
[1760749607119,4.917,182.98,182.91,1.88704602]
[1760749607825,2.69,182.99,182.91,6.80554602]
[1760749608528,7.6067,182.99,182.91,6.80554602]
[1760749609820,7.6067,182.99,182.92,4.9183]
[1760749610027,2.69,182.99,182.83,10.82969448]
[1760749610231,2.69,182.99,182.9,1.88704602]
[1760749610432,4.57704602,182.99,182.9,1.88704602]
[1760749610933,4.9172,182.97,182.9,1.88704602]
[1760749611540,4.9172,182.97,182.9,6.80584602]
[1760749613827,4.9172,182.97,182.9,4.9188]
[1760749614133,9.49374602,182.99,182.88,1.88704602]
[1760749614330,4.57704602,182.99,182.9,1.88704602]
[1760749616132,4.57704602,182.99,182.93,4.918]
[1760749616533,4.57704602,182.99,182.9,1.88704602]
[1760749616534,7.607,182.98,182.91,4.9185]
[1760749616832,2.69,182.98,182.89,1.88704602]
[1760749617033,1.88704602,183.01,182.91,1.88704602]
[1760749617429,2.69,183.03,182.9,2.95527512]
[1760749617636,4.9158,183.02,182.95,4.9174]
[1760749618537,2.69,183.01,182.95,4.9174]
[1760749619734,2.69,183.03,182.9,2.95527512]
[1760749620139,7.6056,183.03,182.88,9.88087097]
[1760749620335,7.6056,183.03,182.89,2.95527512]
[1760749620940,7.6056,183.03,182.96,4.9171]
[1760749621937,2.69,183.0,182.94,4.9177]
[1760749622137,2.69,183.0,182.86,48.37527512]
[1760749622530,2.95527512,183.01,182.86,48.37527512]
[1760749622937,4.9169,182.98,182.91,4.9185]
[1760749623133,2.92,182.97,182.86,48.37527512]
[1760749623340,2.92,182.97,182.86,45.42]
[1760749623943,2.92,183.01,182.86,58.25614609]
[1760749624342,2.92,183.01,182.87,9.88087097]
[1760749624744,2.92,183.01,182.89,2.95527512]
[1760749624938,73.603661,183.04,182.89,2.95527512]
[1760749625138,73.603661,183.04,182.9,45.44]
[1760749625444,2.92,183.03,182.95,4.9174]
[1760749626039,4.08328281,183.03,182.93,4.9181]
[1760749626238,2.92,183.01,182.89,48.39527512]
[1760749627437,2.92,183.01,182.89,58.27614609]
[1760749628041,2.92,183.01,182.94,4.9177]
[1760749629744,7.8361,183.01,182.94,4.9177]
[1760749630341,2.92,183.03,182.92,4.9183]
[1760749630547,70.683661,183.04,182.92,4.9183]
[1760749630548,4.09471908,183.02,182.92,4.9183]
[1760749630845,4.9172,182.97,182.9,4.9188]
[1760749631049,2.79,182.96,182.9,4.9188]
[1760749633546,2.79,182.96,182.86,58.27614609]
[1760749633547,4.9166,182.99,182.91,4.9185]
[1760749633746,2.79,182.97,182.91,4.9185]
[1760749639345,113.16838588,183.04,182.86,48.39527512]
[1760749639346,2.79,183.02,182.92,2.95527512]
[1760749639741,7.7058,183.02,182.91,9.88087097]
[1760749639942,7.7058,183.02,182.85,9.8406]
[1760749639943,4.08957812,183.01,182.89,12.83614609]
[1760749640144,2.79,182.98,182.88,45.42]
[1760749640447,7.7075,182.96,182.89,4.9191]
[1760749641351,4.9177,182.95,182.89,4.9191]
[1760749641551,2.79,182.96,182.88,9.88087097]
[1760749641746,2.79,182.99,182.88,9.88087097]
[1760749642653,4.917,182.98,182.88,9.88087097]
[1760749642854,2.79,182.99,182.89,12.83614609]
[1760749644056,2.79,182.99,182.93,4.918]
[1760749644352,2.79,182.99,182.9,9.88087097]
[1760749644549,2.79,182.99,182.91,9.88087097]
[1760749644955,2.79,182.99,182.9,9.88087097]
[1760749646057,2.79,182.99,182.94,4.9177]
[1760749646257,4.9158,183.02,182.9,9.88087097]
[1760749646560,2.79,183.03,182.92,2.95527512]
[1760749646859,2.79,183.03,182.95,2.95527512]
[1760749647458,2.79,183.03,182.99,4.9163]
[1760749647859,2.79,183.07,182.99,4.9163]
[1760749648058,2.79,183.05,182.99,4.9163]
[1760749648359,2.79,183.03,182.99,4.9163]
[1760749650058,7.7048,183.06,182.99,4.9163]
[1760749651062,2.79,183.06,182.99,4.9163]
[1760749651363,2.79,183.06,183.0,4.9161]
[1760749651860,2.79,183.06,182.98,2.95527512]
[1760749652064,2.79,183.06,183.01,4.9158]
[1760749653952,2.79,183.06,182.95,2.95527512]
[1760749654156,5.74527512,183.06,182.95,2.95527512]
[1760749654559,2.79,183.04,182.97,4.917]
[1760749655260,2.79,183.04,182.98,4.9166]
[1760749657358,2.79,183.03,182.96,4.9172]
[1760749657560,2.95527512,183.03,182.9,9.88087097]
[1760749657761,2.79,183.02,182.91,45.4]
[1760749658265,4.9162,183.01,182.94,4.9178]
[1760749659064,2.79,183.0,182.94,4.9178]
[1760749666572,7.7255,183.03,182.91,45.4]
[1760749667466,7.7255,183.03,182.91,55.28087097]
[1760749668066,2.81,183.03,182.93,2.95527512]
[1760749668568,2.81,183.06,182.99,4.9163]
[1760749668769,2.81,183.06,182.98,45.38]
[1760749669169,2.81,183.05,182.94,2.95527512]
[1760749669368,2.95527512,183.06,182.91,9.88087097]
[1760749669571,2.81,183.02,182.89,2.95527512]
[1760749669873,2.81,183.02,182.89,12.83614609]
[1760749670464,2.81,183.02,182.89,2.95527512]
[1760749671075,4.916,183.01,182.94,4.9177]
[1760749671477,6.74111976,183.1,182.88,25.4]
[1760749671478,2.95527512,183.06,182.92,2.95527512]
[1760749671772,2.95527512,183.03,182.89,9.88087097]
[1760749671974,2.81,182.99,182.89,33.88]
[1760749672372,2.81,182.97,182.92,4.9183]
[1760749672571,2.81,182.96,182.92,4.9183]
[1760749672767,2.81,182.97,182.92,4.9183]
[1760749673178,4.9169,182.98,182.92,4.9183]
[1760749673378,2.81,182.96,182.92,4.9183]
[1760749673978,2.81,182.96,182.93,4.918]
[1760749674280,7.87167512,183.0,182.89,33.88]
[1760749674576,4.9164,183.0,182.94,4.9177]
[1760749674772,2.81,183.01,182.9,2.95527512]
[1760749676071,2.81,183.01,182.95,4.9175]
[1760749677471,2.81,183.01,182.95,6.80866126]
[1760749679874,7.7262,183.01,182.95,1.89116126]
[1760749680074,7.7262,183.01,182.93,6.80916126]
[1760749680075,2.81,183.0,182.93,6.80916126]
[1760749680877,2.81,183.0,182.94,4.9177]
[1760749682679,4.9162,183.01,182.95,1.89116126]
[1760749682875,2.81,182.99,182.95,6.80866126]
[1760749690483,4.9162,183.01,182.97,1.89116126]
[1760749690782,7.8362,183.01,182.97,1.89116126]
[1760749692280,2.84,183.0,182.97,1.89116126]
[1760749695184,2.84,182.99,182.97,1.89116126]
[1760749696587,2.84,183.01,182.97,1.89116126]
[1760749696788,2.84,183.06,182.99,1.89116126]
[1760749696987,4.08414644,183.05,182.99,1.89116126]
[1760749697185,5.10824039,183.07,182.99,1.89116126]
[1760749697186,2.84,183.03,182.99,1.89116126]
[1760749697486,2.84,183.02,182.99,1.89116126]
[1760749700789,2.84,183.05,183.01,1.89116126]
[1760749700987,6.99940165,183.1,183.03,1.89116126]
[1760749700988,2.84,183.09,183.03,1.89116126]
[1760749701287,4.08367954,183.08,183.03,1.89116126]
[1760749701491,2.84,183.06,183.03,1.89116126]
[1760749702591,4.914,183.09,183.03,1.89116126]
[1760749702786,2.84,183.07,183.03,1.89116126]
[1760749702991,2.84,183.08,183.03,1.89116126]
[1760749703193,2.84,183.06,183.03,1.89116126]
[1760749703393,4.914,183.09,183.03,1.89116126]
[1760749703598,2.84,183.07,183.03,1.89116126]
[1760749703888,4.08227701,183.08,182.96,9.88087097]
[1760749703889,4.73116126,183.08,182.96,9.88087097]
[1760749704093,2.84,183.05,182.97,1.89116126]
[1760749704294,2.84,183.03,182.91,9.88087097]
[1760749704588,7.7561,183.01,182.95,1.89116126]
[1760749704792,4.08251739,183.0,182.95,1.89116126]
[1760749704993,2.84,182.98,182.94,4.9177]
[1760749705189,2.84,183.0,182.94,4.9177]
[1760749705394,2.84,182.98,182.94,4.9177]
[1760749705692,2.84,183.0,182.94,4.9177]
[1760749705895,2.84,182.98,182.94,4.9177]
[1760749706097,2.84,182.97,182.94,4.9177]
[1760749707493,2.84,183.0,182.94,4.9177]
[1760749707693,2.84,183.0,182.95,1.89116126]
[1760749708091,4.9164,183.0,182.94,4.9177]
[1760749708295,2.84,182.99,182.94,4.9177]
[1760749708499,2.84,183.0,182.94,4.9177]
[1760749709096,1.89116126,183.03,182.94,4.9177]
[1760749709297,7.08149892,183.02,182.94,4.9177]
[1760749709594,4.24149892,183.01,182.94,4.9177]
[1760749709794,4.24149892,183.0,182.94,4.9177]
[1760749709995,7.7558,183.02,182.94,4.9177]
[1760749710298,4.24162526,183.01,182.94,4.9177]
[1760749710596,4.24162526,183.0,182.94,4.9177]
[1760749710796,7.7558,183.02,182.94,4.9177]
[1760749710992,4.24149719,183.01,182.94,4.9177]
[1760749711197,7.08149719,183.0,182.94,4.9177]
[1760749711394,2.84,183.0,182.94,4.9177]
[1760749713299,2.84,182.98,182.94,4.9177]
[1760749716000,2.84,183.02,182.95,1.89116126]
[1760749716204,2.84,183.02,182.97,1.89116126]
[1760749716598,2.84,183.02,182.99,1.89116126]
[1760749717705,2.84,183.07,182.99,1.89116126]
[1760749717901,2.84,183.05,182.99,1.89116126]
[1760749718209,2.84,183.03,182.99,1.89116126]
[1760749718811,2.84,183.03,182.99,6.80756126]
[1760749721611,7.7841,183.08,182.99,1.89116126]
[1760749721813,4.2396369,183.07,182.99,1.89116126]
[1760749722011,4.2396369,183.06,182.99,1.89116126]
[1760749722211,7.7841,183.08,182.99,1.89116126]
[1760749722416,4.23877945,183.07,182.99,1.89116126]
[1760749722606,7.7841,183.08,182.99,1.89116126]
[1760749722805,2.87,183.06,182.99,1.89116126]
[1760749723006,2.87,183.07,183.02,4.9156]
[1760749723206,4.9141,183.08,183.02,4.9156]
[1760749723414,2.87,183.06,183.02,4.9156]
[1760749723607,2.87,183.07,183.02,4.9156]
[1760749723813,4.9141,183.08,183.02,4.9156]
[1760749724114,2.87,183.05,183.02,4.9156]
[1760749724817,2.87,183.06,183.0,4.9162]
[1760749725008,1.89116126,183.07,183.0,4.9162]
[1760749725009,2.87,183.04,183.0,4.9162]
[1760749725411,1.89116126,183.05,183.0,4.9162]
[1760749725812,2.87,183.04,183.0,4.9162]
[1760749726011,1.89116126,183.05,183.0,4.9162]
[1760749726211,2.87,183.04,183.0,4.9162]
[1760749726618,1.89116126,183.05,183.0,4.9162]
[1760749726912,2.87,183.04,183.0,4.9162]
[1760749727116,1.89116126,183.05,183.0,4.9162]
[1760749727320,2.87,183.04,183.0,4.9162]
[1760749728020,2.87,183.06,183.0,4.9162]
[1760749728419,4.26218557,183.05,183.0,4.9162]
[1760749728620,2.87,183.06,183.0,4.9162]
[1760749728821,2.87,183.04,183.0,4.9162]
[1760749729019,4.76116126,183.05,182.98,4.9167]
[1760749729217,2.87,183.02,182.98,4.9167]
[1760749729519,2.87,183.02,182.94,1.89116126]
[1760749730414,1.89116126,183.03,182.94,1.89116126]
[1760749730614,4.76116126,183.05,182.96,1.89116126]
[1760749730819,4.26255091,183.04,182.96,1.89116126]
[1760749731016,4.76116126,183.05,182.96,1.89116126]
[1760749731218,2.87,183.05,182.96,1.89116126]
[1760749732024,2.87,183.04,183.0,4.9161]
[1760749732217,4.9148,183.06,183.0,4.9161]
[1760749732417,2.87,183.04,183.0,4.9161]
[1760749732614,2.87,183.05,183.0,4.9161]
[1760749733523,2.87,183.04,183.0,4.9161]
[1760749734126,4.9148,183.06,183.0,4.9161]
[1760749734327,2.87,183.04,183.0,4.9161]
[1760749734926,2.87,183.05,183.0,4.9161]
[1760749735425,2.87,183.04,183.0,4.9161]
[1760749736127,4.76116126,183.07,183.01,4.9158]
[1760749736329,7.13199435,183.06,182.98,1.89116126]
[1760749736529,2.87,183.06,182.98,1.89116126]
[1760749739225,1.89116126,183.06,183.0,4.9162]
[1760749739431,4.26140699,183.05,183.0,4.9162]
[1760749739629,2.87,183.06,183.0,4.9162]
[1760749739834,2.87,183.04,183.0,4.9162]
[1760749740427,2.87,183.07,182.95,2.95401744]
[1760749740628,4.26133359,183.06,182.95,2.95401744]
[1760749740829,2.87,183.07,182.95,2.95401744]
[1760749741032,4.26132902,183.06,182.95,2.95401744]
[1760749741223,2.87,183.07,182.95,2.95401744]
[1760749741426,4.26134758,183.06,183.01,2.95401744]
[1760749741627,4.26082757,183.1,183.01,48.29401744]
[1760749741829,7.97824039,183.15,183.04,2.95401744]
[1760749742031,7.12999722,183.14,183.1,4.9135]
[1760749742228,4.25999722,183.13,183.04,2.95401744]
[1760749742425,2.87,183.14,183.04,2.95401744]
[1760749742624,2.87,183.18,183.07,2.95401744]
[1760749742824,4.25714412,183.17,183.07,2.95401744]
[1760749743028,4.25714412,183.16,183.07,2.95401744]
[1760749743223,4.25714412,183.15,183.12,4.9129]
[1760749743430,2.75,183.15,183.12,4.9129]
[1760749743624,4.9113,183.19,183.12,4.9129]
[1760749743828,6.98786278,183.18,183.12,4.9129]
[1760749744034,6.98786278,183.17,183.13,4.9126]
[1760749744229,2.75,183.17,183.13,4.9126]
[1760749744434,4.23423711,183.19,183.1,48.29401744]
[1760749744635,2.75,183.24,183.13,2.95401744]
[1760749744830,4.23333596,183.23,183.13,2.95401744]
[1760749745034,2.75,183.24,183.13,2.95401744]
[1760749745237,2.75,183.24,183.16,2.95401744]
[1760749746035,2.75,183.24,183.18,4.9112]
[1760749747638,2.75,183.24,183.19,4.9109]
[1760749747843,9.13592746,183.27,183.19,4.9109]
[1760749748137,2.75,183.23,183.19,4.9109]
[1760749749540,2.75,183.23,183.1,45.34]
[1760749749541,2.75,183.23,183.17,4.9117]
[1760749749744,2.75,183.23,183.11,2.95401744]
[1760749750036,2.95401744,183.25,183.12,44.24]
[1760749750234,2.95401744,183.25,183.12,45.32]
[1760749750235,2.75,183.24,183.12,45.32]
[1760749750435,2.95401744,183.25,183.12,45.32]
[1760749750941,7.65,183.24,183.15,4.9122]
[1760749751236,4.91,183.24,183.15,4.9122]
[1760749751442,2.74,183.23,183.15,4.9122]
[1760749752042,2.95401744,183.22,183.15,4.9122]
[1760749753641,2.95401744,183.22,183.18,4.9114]
[1760749753843,2.74,183.21,183.18,4.9114]
[1760749754752,5.69401744,183.25,183.18,4.9114]
[1760749754947,5.69401744,183.25,183.19,4.911]